bitfinex/quotes_BTCUSD_20240701
["timestamp","ask_amount","ask_price","bid_price","bid_amount"]
[1719823750472,2.53827751,62940.0,62939.0,0.00924]
[1719823750694,2.53827751,62940.0,62939.0,0.48589]
[1719823751056,2.01451551,62940.0,62939.0,0.48589]
[1719823751245,1.433752,62940.0,62939.0,0.48589]
[1719823751428,1.108155,62940.0,62939.0,0.48589]
[1719823751635,1.108155,62940.0,62939.0,0.9707254]
[1719823751636,0.172881,62940.0,62939.0,0.9707254]
[1719823751956,0.822405,62940.0,62939.0,0.9707254]
[1719823752081,0.504643,62940.0,62939.0,0.88159]
[1719823752285,0.490643,62940.0,62939.0,0.88159]
[1719823752488,0.476643,62940.0,62939.0,0.88159]
[1719823752694,0.481643,62940.0,62939.0,0.88159]
[1719823752887,0.899405,62940.0,62939.0,0.88159]
[1719823753088,0.258881,62940.0,62939.0,0.88159]
[1719823753342,0.02,62958.0,62939.0,0.88159]
[1719823753343,0.19975,62951.0,62942.0,0.3938]
[1719823753489,0.158866,62946.0,62943.0,0.49662]
[1719823753692,0.158868,62945.0,62944.0,0.1785]
[1719823753898,0.317702,62952.0,62945.0,0.02]
[1719823754379,0.15886,62949.0,62947.0,0.1692]
[1719823754532,0.517443,62954.0,62950.0,0.1692]
[1719823754765,0.158853,62951.0,62950.0,0.1692]
[1719823754964,0.47656,62951.0,62950.0,0.1692]
[1719823755498,0.19975,62947.0,62944.0,0.002]
[1719823755756,0.794342,62945.0,62944.0,0.002]
[1719823755966,0.794342,62945.0,62943.0,0.65812]
[1719823755967,0.794355,62944.0,62943.0,0.65812]
[1719823756345,0.894355,62944.0,62943.0,0.65812]
[1719823756763,0.1,62944.0,62943.0,0.67812]
[1719823756960,0.1,62944.0,62943.0,0.89542]
[1719823757161,0.1,62944.0,62943.0,0.87542]
[1719823757730,0.101,62944.0,62943.0,0.87542]
[1719823758012,0.101,62944.0,62943.0,1.01397]
[1719823758147,0.102,62944.0,62943.0,1.01497]
[1719823758358,0.260871,62944.0,62943.0,1.01497]
[1719823758729,0.259871,62944.0,62943.0,1.01397]
[1719823758942,0.101,62944.0,62943.0,1.03397]
[1719823759142,0.158871,62944.0,62943.0,1.03397]
[1719823759380,0.258871,62944.0,62943.0,1.03397]
[1719823759610,0.259871,62944.0,62943.0,1.01497]
[1719823760054,0.260871,62944.0,62943.0,1.01497]
[1719823760300,0.260871,62944.0,62943.0,0.53835]
[1719823760497,0.259871,62944.0,62943.0,0.53835]
[1719823760688,0.31767,62959.0,62943.0,0.74126198]
[1719823760885,0.64151475,62973.0,62955.0,0.02]
[1719823760886,0.158837,62958.0,62955.0,0.02]
[1719823761106,0.158837,62958.0,62956.0,0.3985]
[1719823761382,0.158838,62957.0,62956.0,0.3985]
[1719823761659,0.19975,62963.0,62959.0,0.02]
[1719823761660,0.158825,62963.0,62959.0,0.02]
[1719823761838,0.381255,62967.0,62955.0,0.1767275]
[1719823761839,0.063628,62967.0,62966.0,0.4309]
[1719823762047,0.02,62987.0,62972.0,0.1809]
[1719823762048,0.317568,62979.0,62972.0,0.1809]
[1719823762273,0.476386,62974.0,62973.0,0.04309]
[1719823762471,0.476394,62973.0,62972.0,0.1809]
[1719823762822,0.79399,62973.0,62972.0,0.1809]
[1719823763384,0.476394,62973.0,62972.0,0.1809]
[1719823763909,0.477394,62973.0,62972.0,0.1949]
[1719823764364,0.577394,62973.0,62972.0,0.1949]
[1719823765081,1.09474,62973.0,62972.0,0.014]
[1719823766180,1.09574,62973.0,62972.0,0.028]
[1719823767893,0.89599,62973.0,62972.0,0.028]
[1719823768361,1.09574,62973.0,62972.0,0.028]
[1719823771410,0.102,62973.0,62972.0,0.07113]
[1719823771610,0.002,62973.0,62972.0,0.07113]
[1719823772262,0.002,62973.0,62972.0,0.028]
[1719823772619,0.160798,62973.0,62972.0,0.028]
[1719823772811,0.260798,62973.0,62972.0,0.028]
[1719823773446,0.260798,62973.0,62972.0,0.6005]
[1719823773447,0.002,62973.0,62972.0,0.6005]
[1719823773653,0.002,62973.0,62972.0,0.71265499]
[1719823773861,0.002,62973.0,62972.0,1.51019597]
[1719823774062,0.002,62973.0,62972.0,1.19259497]
[1719823774759,0.002,62973.0,62972.0,1.37859497]
[1719823775004,0.002,62973.0,62972.0,1.69644597]
[1719823775209,0.19975,62993.0,62982.0,0.1766]
[1719823775420,0.47591475,62991.0,62984.0,0.2263]
[1719823775621,0.158757,62990.0,62984.0,0.2463]
[1719823775823,0.158758,62989.0,62985.0,0.1766]
[1719823775952,0.158754,62991.0,62986.0,0.02]
[1719823776153,0.158756,62990.0,62987.0,0.02]
[1719823776394,0.158756,62990.0,62986.0,0.066519]
[1719823776556,0.258758,62989.0,62987.0,0.0650483]
[1719823776755,0.15876,62988.0,62987.0,0.0650483]
[1719823776977,0.15876,62988.0,62986.0,0.046519]
[1719823776978,0.25876,62988.0,62986.0,0.046519]
[1719823777340,0.1,62987.0,62986.0,0.046519]
[1719823777604,0.258762,62987.0,62986.0,0.046519]
[1719823778633,0.259762,62987.0,62986.0,0.056519]
[1719823778839,0.259762,62987.0,62986.0,0.063519]
[1719823779037,0.259762,62987.0,62986.0,0.056519]
[1719823779486,0.259762,62987.0,62986.0,0.065519]
[1719823781348,0.001,62987.0,62986.0,0.019]
[1719823781559,0.001,62987.0,62986.0,0.039]
[1719823782316,0.001,62987.0,62986.0,0.197765]
[1719823782526,0.001,62987.0,62986.0,0.77087888]
[1719823782833,0.001,62987.0,62986.0,1.25074259]
[1719823783038,0.001,62987.0,62986.0,1.56852259]
[1719823783237,0.001,62987.0,62986.0,1.56534769]
[1719823784003,0.158738,62997.0,62990.0,0.4232]
[1719823784205,0.158738,62997.0,62991.0,0.16233898]
[1719823784440,0.158738,62997.0,62992.0,0.0744546]
[1719823785040,0.15874,62996.0,62992.0,0.0944546]
[1719823785253,0.15874,62996.0,62992.0,0.0744546]
[1719823785451,0.15874,62996.0,62995.0,0.1715]
[1719823786806,0.79375,62992.0,62991.0,0.1715]
[1719823787238,0.79375,62992.0,62991.0,0.21182]
[1719823787460,0.79375,62992.0,62991.0,0.04032]
[1719823788067,0.79375,62992.0,62987.0,0.1796]
[1719823788068,0.7938,62988.0,62987.0,0.1796]
[1719823790183,0.7938,62988.0,62987.0,0.1936]
[1719823790382,1.31107,62988.0,62987.0,0.014]
[1719823790583,1.41107,62988.0,62987.0,0.014]
[1719823790702,1.43431266,62988.0,62987.0,0.028]
[1719823791304,1.43431266,62988.0,62987.0,0.014]
[1719823791514,0.793902,62980.0,62979.0,0.3984]
[1719823792578,0.793902,62980.0,62979.0,0.43824]
[1719823793227,0.793902,62980.0,62979.0,0.45224]
[1719823794534,0.793902,62980.0,62979.0,0.4124]
[1719823794935,0.793902,62980.0,62979.0,0.4264]
[1719823795148,0.793902,62980.0,62979.0,0.4464]
[1719823795427,0.158773,62983.0,62982.0,0.02]
[1719823795674,0.158775,62982.0,62981.0,0.02]
[1719823796856,0.317533,62986.0,62985.0,0.02]
[1719823797088,0.158767,62985.0,62984.0,0.02]
[1719823797294,0.158767,62985.0,62984.0,0.23231379]
[1719823798742,0.00084,62988.0,62987.0,0.2432]
[1719823798947,0.00084,62988.0,62987.0,0.2232]
[1719823799175,0.00084,62988.0,62987.0,0.28782848]
[1719823799597,0.00084,62988.0,62987.0,0.30782848]
[1719823799798,0.00084,62988.0,62987.0,0.45016746]
[1719823799971,0.00084,62988.0,62987.0,0.47016746]
[1719823800728,0.00084,62988.0,62987.0,0.45016746]
[1719823801148,0.00084,62988.0,62987.0,0.47716746]
[1719823801632,0.00084,62988.0,62987.0,0.48616746]
[1719823801945,0.00084,62988.0,62987.0,0.82627946]
[1719823802158,0.00084,62988.0,62987.0,1.14380446]
[1719823803409,0.00084,62988.0,62987.0,0.48492848]
[1719823803410,0.47712,62988.0,62987.0,0.48492848]
[1719823803626,0.47712,62988.0,62987.0,0.26172848]
[1719823803842,0.50030539,62988.0,62987.0,0.016]
[1719823804480,0.79464,62988.0,62987.0,0.016]
[1719823804746,1.57699708,62988.0,62987.0,0.016]
[1719823805352,1.69699708,62988.0,62987.0,0.016]
[1719823805581,1.69143309,62988.0,62987.0,0.016]
[1719823806622,1.71143309,62988.0,62987.0,0.016]
[1719823806752,1.69143309,62988.0,62987.0,0.016]
[1719823807422,1.44953309,62988.0,62987.0,0.016]
[1719823807784,1.44897001,62988.0,62987.0,0.016]
[1719823809544,2.13172899,62988.0,62987.0,0.016]
[1719823809756,2.37587956,62988.0,62987.0,0.016]
[1719823810148,2.43487956,62988.0,62987.0,0.016]
[1719823810581,2.41487956,62988.0,62987.0,0.016]
[1719823810779,2.43405357,62988.0,62987.0,0.016]
[1719823811027,2.4348164,62988.0,62987.0,0.016]
[1719823811405,0.793977,62974.0,62970.0,0.4716]
[1719823811625,0.83060448,62974.0,62970.0,0.4716]
[1719823812199,0.83852448,62974.0,62970.0,0.4716]
[1719823812615,0.83852448,62974.0,62973.0,0.014924]
[1719823813682,0.83852448,62974.0,62973.0,0.028924]
[1719823813886,0.801897,62974.0,62973.0,0.028924]
[1719823814036,1.35582459,62974.0,62973.0,0.028924]
[1719823814201,1.439238,62974.0,62973.0,0.028924]
[1719823814406,1.7934376,62974.0,62973.0,0.028924]
[1719823814605,1.7734376,62974.0,62973.0,0.028924]
[1719823814896,1.7934376,62974.0,62973.0,0.014924]
[1719823815099,1.7934376,62974.0,62973.0,0.000924]
[1719823815308,1.95577658,62974.0,62973.0,0.000924]
[1719823815657,2.01652129,62974.0,62973.0,0.000924]
[1719823816744,1.99452129,62974.0,62973.0,0.000924]
[1719823816949,1.51551076,62974.0,62973.0,0.000924]
[1719823817160,1.51751076,62974.0,62973.0,0.000924]
[1719823817379,1.51751076,62974.0,62973.0,0.477314]
[1719823818760,0.94115344,62974.0,62973.0,0.477314]
[1719823819608,0.62356244,62974.0,62973.0,0.477314]
[1719823819964,0.62356244,62974.0,62973.0,0.5443154]
[1719823819965,0.14811594,62974.0,62973.0,0.5443154]
[1719823820164,0.14811594,62974.0,62973.0,0.9456154]
[1719823820389,0.04811594,62974.0,62973.0,0.9456154]
[1719823820613,0.30691094,62974.0,62973.0,0.9456154]
[1719823820999,0.30491094,62974.0,62973.0,0.9456154]
[1719823821201,0.30491094,62974.0,62973.0,0.9506154]
[1719823821944,0.30491094,62974.0,62973.0,0.906614]
[1719823821945,0.04611594,62974.0,62973.0,0.906614]
[1719823822950,0.02247106,62974.0,62973.0,0.906614]
[1719823823748,1.59936087,62974.0,62973.0,0.485314]
[1719823824126,1.69436087,62974.0,62973.0,0.485314]
[1719823824532,1.63536087,62974.0,62973.0,0.480314]
[1719823824705,1.42878906,62974.0,62973.0,0.477314]
[1719823824896,0.14476848,62974.0,62973.0,0.9300454]
[1719823825114,0.14176848,62974.0,62973.0,0.9300454]
[1719823825313,0.20056348,62974.0,62973.0,0.9300454]
[1719823825509,0.61815448,62974.0,62973.0,0.9290454]
[1719823826153,0.60262973,62974.0,62973.0,0.9290454]
[1719823826316,0.61712778,62974.0,62973.0,0.9290454]
[1719823826533,0.579386,62974.0,62973.0,0.9290454]
[1719823826812,0.01749784,62974.0,62973.0,0.9490454]
[1719823826951,0.01449784,62974.0,62973.0,0.9290454]
[1719823827174,0.01453378,62978.0,62973.0,0.9320454]
[1719823827374,0.158791,62976.0,62973.0,0.9320454]
[1719823827590,0.01453378,62975.0,62973.0,0.9290454]
[1719823827758,0.01453378,62975.0,62974.0,0.11492954]
[1719823828004,0.03831382,62975.0,62974.0,0.09492954]
[1719823828226,0.01453378,62975.0,62974.0,0.11492954]
[1719823828472,0.158788,62977.0,62976.0,0.02]
[1719823828698,0.19721687,62977.0,62976.0,0.05685849]
[1719823828926,0.03842887,62977.0,62976.0,0.07685849]
[1719823829149,0.31754,62985.0,62979.0,0.02]
[1719823829150,0.158778,62981.0,62979.0,0.02]
[1719823829393,0.476334,62981.0,62980.0,0.04796585]
[1719823829621,0.51464852,62981.0,62980.0,0.04796585]
[1719823830576,0.51764852,62981.0,62980.0,0.04796585]
[1719823831314,0.52058852,62981.0,62980.0,0.04796585]
[1719823831513,0.04425452,62981.0,62980.0,0.24146585]
[1719823831719,0.04425452,62981.0,62980.0,0.45856585]
[1719823831924,0.04425452,62981.0,62980.0,0.43856585]
[1719823832468,0.04187884,62981.0,62980.0,0.43856585]
[1719823833011,0.03887884,62981.0,62980.0,0.45856585]
[1719823833406,0.04187884,62981.0,62980.0,0.43856585]
[1719823833830,0.04187884,62981.0,62980.0,0.45256585]
[1719823834039,0.04187884,62981.0,62980.0,0.47256585]
[1719823834241,0.04187884,62981.0,62980.0,0.45256585]
[1719823834644,0.04187884,62981.0,62980.0,0.46456585]
[1719823835497,0.00594,62981.0,62980.0,0.46456585]
[1719823835648,0.02777411,62981.0,62980.0,0.46456585]
[1719823835849,0.04234248,62981.0,62980.0,0.46456585]
[1719823836282,0.04234248,62981.0,62980.0,0.48456585]
[1719823836746,0.04234248,62981.0,62980.0,0.64690483]
[1719823836947,0.04234248,62981.0,62980.0,0.80568483]
[1719823837096,0.02050837,62981.0,62980.0,1.32349583]
[1719823837694,0.02050837,62981.0,62980.0,1.64105683]
[1719823837889,0.00594,62981.0,62980.0,1.64105683]
[1719823838112,0.00594,62981.0,62980.0,1.66405683]
[1719823838298,0.00594,62981.0,62980.0,1.46405683]
[1719823844701,0.00594,62981.0,62980.0,1.98161783]
[1719823845555,0.00594,62981.0,62980.0,2.18161783]
[1719823846142,0.00594,62981.0,62980.0,2.20038036]
[1719823846552,0.00594,62981.0,62980.0,2.18638036]
[1719823846553,0.00294,62981.0,62980.0,2.18638036]
[1719823846748,0.00294,62981.0,62980.0,2.18838036]
[1719823846955,0.00294,62981.0,62980.0,2.20238036]
[1719823848127,0.00084,62988.0,62987.0,1.531587]
[1719823848356,0.00084,62988.0,62987.0,2.41422598]
[1719823850209,0.00084,62988.0,62987.0,2.44222598]
[1719823850431,0.00084,62988.0,62987.0,2.42822598]
[1719823850670,0.158695,63014.0,63009.0,0.02]
[1719823850894,0.01434066,63013.0,63010.0,0.16233898]
[1719823851153,0.01434096,63012.0,63010.0,0.16233898]
[1719823851349,0.158691,63016.0,63013.0,0.02]
[1719823851588,0.17299129,63015.0,63014.0,0.02]
[1719823852278,0.01429829,63015.0,63014.0,0.02]
[1719823852531,0.01428229,63016.0,63015.0,0.02]
[1719823852863,0.0142823,63016.0,63015.0,0.04774819]
[1719823853805,0.0142823,63016.0,63015.0,0.04874819]
[1719823854334,0.01431167,63016.0,63015.0,0.04874819]
[1719823855719,0.01431167,63016.0,63015.0,0.06874819]
[1719823855957,0.01431167,63016.0,63015.0,0.04874819]
[1719823857095,0.49037967,63016.0,63015.0,0.04874819]
[1719823857335,0.80781584,63016.0,63015.0,0.001]
[1719823857569,0.87081584,63016.0,63015.0,0.001]
[1719823857798,1.37119484,63016.0,63015.0,0.001]
[1719823858679,1.05381584,63016.0,63015.0,0.001]
[1719823860891,0.01520884,63016.0,63015.0,0.021]
[1719823861105,0.01520884,63016.0,63015.0,0.001]
[1719823861327,0.01520884,63016.0,63015.0,0.0608304]
[1719823862166,0.01520884,63016.0,63015.0,0.0808304]
[1719823862826,0.01522239,63016.0,63015.0,0.40503497]
[1719823863081,0.01522239,63016.0,63015.0,0.40186138]
[1719823863277,0.00084,63016.0,63015.0,0.40186138]
[1719823863929,0.00084,63016.0,63015.0,0.24316938]
[1719823864911,0.01521939,63016.0,63015.0,0.40186138]
[1719823865114,0.01521938,63016.0,63015.0,0.40086138]
[1719823865353,0.00084,63016.0,63015.0,0.41486138]
[1719823865476,0.00084,63016.0,63015.0,0.25616938]
[1719823865694,0.00084,63016.0,63015.0,0.41486138]
[1719823866598,0.01528263,63016.0,63015.0,0.41486138]
[1719823867046,0.01528263,63016.0,63015.0,0.42786138]
[1719823867500,0.01528263,63016.0,63015.0,0.40086138]
[1719823867707,0.01528263,63016.0,63015.0,0.71849538]
[1719823867859,0.00084,63016.0,63015.0,0.74649538]
[1719823871109,0.00084,63016.0,63015.0,0.94649538]
[1719823871343,0.00084,63016.0,63015.0,1.26387938]
[1719823872595,0.00084,63016.0,63015.0,1.24987938]
[1719823872816,0.00084,63016.0,63015.0,1.65907938]
[1719823873855,0.00084,63016.0,63015.0,2.18546338]
[1719823874046,0.00084,63016.0,63015.0,2.22138338]
[1719823874837,0.00084,63016.0,63015.0,2.19338338]
[1719823875013,0.00084,63016.0,63015.0,2.20738338]
[1719823875221,0.00084,63016.0,63015.0,2.52476738]
[1719823875798,0.00084,63016.0,63015.0,2.67063817]
[1719823876603,0.00084,63016.0,63015.0,2.35325417]
[1719823876808,0.00084,63016.0,63015.0,2.22138338]
[1719823877050,0.00084,63016.0,63015.0,2.20738338]
[1719823877265,0.00084,63016.0,63015.0,2.19338338]
[1719823877572,0.00084,63016.0,63015.0,2.20738338]
[1719823877771,0.00084,63016.0,63015.0,2.22138338]
[1719823878379,0.00084,63016.0,63015.0,2.53876738]
[1719823878723,0.00084,63016.0,63015.0,2.67064101]
[1719823879570,0.00084,63016.0,63015.0,2.35325701]
[1719823879974,0.00084,63016.0,63015.0,2.22138338]
[1719823881027,0.00084,63016.0,63015.0,2.22113338]
[1719823881230,0.00084,63016.0,63015.0,2.40713338]
[1719823881446,0.00084,63016.0,63015.0,2.40738338]
[1719823883193,0.00084,63016.0,63015.0,1.88999938]
[1719823883429,0.00084,63016.0,63015.0,2.08999938]
[1719823883769,0.00084,63016.0,63015.0,2.40738338]
[1719823885209,0.00084,63016.0,63015.0,2.72476738]
[1719823885331,0.00084,63016.0,63015.0,2.40738338]
[1719823886180,0.00084,63016.0,63015.0,2.72476738]
[1719823886442,0.00084,63016.0,63015.0,2.95663477]
[1719823887734,0.00084,63016.0,63015.0,2.82476738]
[1719823887894,0.00084,63016.0,63015.0,2.95663301]
[1719823888096,0.00084,63016.0,63015.0,2.82476738]
[1719823888305,0.00084,63016.0,63015.0,3.43270299]
[1719823890708,0.00084,63016.0,63015.0,3.4327037]
[1719823891487,0.00084,63016.0,63015.0,3.30083738]
[1719823891831,0.00084,63016.0,63015.0,3.43270418]
[1719823892954,0.00084,63016.0,63015.0,3.50383576]
[1719823893582,0.00084,63017.0,63016.0,1.531076]
[1719823893783,0.00084,63017.0,63016.0,2.96118549]
[1719823894031,0.00084,63017.0,63016.0,2.82931869]
[1719823894229,0.00084,63017.0,63016.0,3.27856021]
[1719823894432,0.00084,63017.0,63016.0,3.54973038]
[1719823894653,0.00841,63018.0,63017.0,1.531059]
[1719823894855,0.00841,63018.0,63017.0,3.29012821]
[1719823895762,0.00841,63018.0,63017.0,3.36129681]
[1719823896584,0.00084,63027.0,63026.0,1.530901]
[1719823896808,0.00084,63027.0,63026.0,2.75412998]
[1719823898070,0.00084,63027.0,63026.0,2.76812998]
[1719823898275,0.00084,63027.0,63026.0,3.24779269]
[1719823898474,0.00084,63027.0,63026.0,3.26179269]
[1719823899859,0.00084,63027.0,63026.0,3.15009269]
[1719823901064,0.00084,63027.0,63026.0,3.13609269]
[1719823901266,0.00084,63027.0,63026.0,3.12209269]
[1719823901465,0.00084,63027.0,63026.0,3.13609269]
[1719823901674,0.00084,63027.0,63026.0,3.15009269]
[1719823903151,0.00084,63027.0,63026.0,3.07579269]
[1719823903398,0.00084,63027.0,63026.0,3.15009269]
[1719823907230,0.00084,63027.0,63026.0,3.16907769]
[1719823908419,0.00084,63027.0,63026.0,3.26907769]
[1719823908761,0.57497082,63036.0,63030.0,1.84814]
[1719823908910,0.57497082,63036.0,63030.0,2.26647898]
[1719823909114,0.57497082,63036.0,63030.0,2.74243898]
[1719823909869,0.57497082,63036.0,63030.0,2.94653898]
[1719823910028,0.57497082,63036.0,63030.0,3.04653898]
[1719823910234,0.57497082,63036.0,63030.0,3.22287269]
[1719823910697,0.57497082,63036.0,63030.0,3.23687269]
[1719823911124,0.57497082,63036.0,63030.0,3.22287269]
[1719823911343,0.57497082,63036.0,63030.0,3.22262269]
[1719823911557,0.57497082,63036.0,63030.0,3.25087269]
[1719823911941,0.57497082,63036.0,63030.0,3.23687269]
[1719823912344,0.57497082,63036.0,63030.0,1.63884569]
[1719823912633,0.1433,63032.0,63030.0,1.53884569]
[1719823912769,0.1433,63032.0,63030.0,1.58514569]
[1719823912989,0.1433,63032.0,63030.0,1.52484569]
[1719823913245,0.1433,63032.0,63030.0,1.59914569]
[1719823913423,0.1433,63032.0,63030.0,1.06783669]
[1719823913656,0.01528586,63031.0,63030.0,1.58514569]
[1719823914064,0.01528586,63031.0,63030.0,1.59914569]
[1719823914548,0.01528586,63031.0,63030.0,1.58514569]
[1719823914874,0.01528586,63031.0,63030.0,1.59914569]
[1719823915087,0.01528586,63031.0,63030.0,1.58514569]
[1719823916078,0.0152363,63031.0,63030.0,1.58514569]
[1719823916474,0.0152363,63031.0,63030.0,1.59914569]
[1719823917935,0.0152363,63031.0,63030.0,1.91645469]
[1719823918160,0.0152363,63031.0,63030.0,1.52484569]
[1719823918346,0.0152363,63031.0,63030.0,1.59914569]
[1719823919196,0.01517015,63031.0,63030.0,1.59914569]
[1719823919624,0.01517009,63031.0,63030.0,1.59914569]
[1719823921204,0.01517009,63031.0,63030.0,1.59914569]
[1719823921586,0.01517009,63031.0,63030.0,1.91645469]
[1719823921994,0.01517009,63031.0,63030.0,2.13945469]
[1719823922193,0.00084,63031.0,63030.0,2.33855469]
[1719823922372,0.00084,63031.0,63030.0,2.65586369]
[1719823923076,0.00084,63031.0,63030.0,1.86515469]
[1719823923273,0.00084,63031.0,63030.0,1.32484569]
[1719823923502,0.10808512,63031.0,63030.0,1.39914569]
[1719823923861,0.10808512,63031.0,63030.0,1.57914569]
[1719823924062,0.10808512,63031.0,63030.0,1.91645469]
[1719823924263,0.10808512,63031.0,63030.0,1.50484569]
[1719823924547,0.10808512,63031.0,63030.0,1.57914569]
[1719823924669,0.01518143,63031.0,63030.0,2.11475469]
[1719823924883,0.01518143,63031.0,63030.0,2.49165469]
[1719823925510,0.00084,63031.0,63030.0,2.49165469]
[1719823925727,0.00084,63031.0,63030.0,2.80896369]
[1719823926349,0.00084,63031.0,63030.0,3.12627269]
[1719823926549,0.00084,63031.0,63030.0,2.90896369]
[1719823926756,0.00084,63031.0,63030.0,3.22627269]
[1719823927381,0.00084,63031.0,63030.0,3.21227269]
[1719823927793,0.00084,63031.0,63030.0,3.33777269]
[1719823928465,0.00084,63031.0,63030.0,3.37135618]
[1719823928641,0.00084,63031.0,63030.0,3.00646369]
[1719823928981,0.00084,63031.0,63030.0,1.52484569]
[1719823929181,0.01512573,63031.0,63030.0,1.52484569]
[1719823929391,0.01512573,63031.0,63030.0,1.82815469]
[1719823929812,0.01512573,63031.0,63030.0,0.82863269]
[1719823930021,0.10802573,63031.0,63030.0,1.02888269]
[1719823930189,0.10802573,63031.0,63030.0,1.18753669]
[1719823930906,0.10810102,63031.0,63030.0,1.18753669]
[1719823931267,0.10810187,63031.0,63030.0,1.18753669]
[1719823931875,0.01520187,63031.0,63030.0,1.18753669]
[1719823933260,0.01520187,63031.0,63030.0,0.82863269]
[1719823933890,0.00084,63031.0,63030.0,1.02863269]
[1719823934094,0.01518586,63031.0,63030.0,0.82863269]
[1719823934299,0.01518586,63031.0,63030.0,0.81463269]
[1719823934849,0.01518586,63031.0,63030.0,0.80063269]
[1719823935047,0.01518586,63031.0,63030.0,0.81463269]
[1719823935255,0.01518586,63031.0,63030.0,0.82863269]
[1719823935447,0.01518586,63031.0,63030.0,1.02863269]
[1719823935640,0.01518586,63031.0,63030.0,0.82863269]
[1719823937227,0.01514118,63031.0,63030.0,0.82863269]
[1719823938435,0.01514118,63031.0,63030.0,1.00753669]
[1719823938640,0.01514118,63031.0,63030.0,1.32484569]
[1719823940440,0.01511674,63031.0,63030.0,1.32484569]
[1719823942155,0.01511674,63031.0,63030.0,1.64215469]
[1719823943657,0.01507673,63031.0,63030.0,1.64215469]
[1719823944075,0.01507675,63031.0,63030.0,1.64215469]
[1719823944656,0.10797675,63031.0,63030.0,1.30484569]
[1719823945101,0.10797675,63031.0,63030.0,1.29059569]
[1719823945311,0.10797675,63031.0,63030.0,0.98728669]
[1719823945477,0.10797675,63031.0,63030.0,0.81463269]
[1719823945478,0.09374,63031.0,63030.0,0.81463269]
[1719823945723,0.09374,63031.0,63030.0,0.97328669]
[1719823945942,0.10798682,63031.0,63030.0,0.97328669]
[1719823946292,0.10798682,63031.0,63030.0,0.98728669]
[1719823946538,0.09374,63031.0,63030.0,0.98728669]
[1719823946763,0.09374,63031.0,63030.0,0.97328669]
[1719823947212,0.09374,63031.0,63030.0,1.29059569]
[1719823947461,0.09374,63031.0,63030.0,1.30459569]
[1719823948454,0.09374,63031.0,63030.0,0.98728669]
[1719823949625,0.00084,63031.0,63030.0,1.32459569]
[1719823949827,0.00084,63031.0,63030.0,1.39899569]
[1719823950235,0.00084,63031.0,63030.0,1.71655469]
[1719823950436,0.00084,63031.0,63030.0,1.87465469]
[1719823951171,0.00084,63031.0,63030.0,1.86065469]
[1719823951636,0.00084,63031.0,63030.0,1.85465469]
[1719823951839,0.00084,63031.0,63030.0,1.76625469]
[1719823952576,0.00084,63031.0,63030.0,1.78025469]
[1719823952773,0.00084,63031.0,63030.0,1.46294569]
[1719823953664,0.00084,63031.0,63030.0,1.44894569]
[1719823953862,0.00084,63031.0,63030.0,1.43494569]
[1719823954082,0.00084,63031.0,63030.0,1.44894569]
[1719823954267,0.00084,63031.0,63030.0,1.46294569]
[1719823954471,0.00084,63031.0,63030.0,1.44894569]
[1719823954676,0.00084,63031.0,63030.0,0.97353669]
[1719823954875,0.00084,63031.0,63030.0,0.82863269]
[1719823955218,0.00084,63031.0,63030.0,0.81463269]
[1719823955731,0.00084,63031.0,63030.0,0.82863269]
[1719823956135,0.00084,63031.0,63030.0,0.81463269]
[1719823956585,0.00084,63031.0,63030.0,0.82863269]
[1719823958444,0.16927615,63031.0,63030.0,0.82863269]
[1719823958641,0.32792815,63031.0,63030.0,0.82863269]
[1719823958867,0.32792815,63031.0,63030.0,0.66629898]
[1719823958868,0.57608015,63031.0,63030.0,0.66629898]
[1719823961830,0.566296,63031.0,63030.0,0.66629898]
[1719823962069,0.57607929,63031.0,63030.0,0.66629898]
[1719823962773,0.57607929,63031.0,63030.0,0.73302128]
[1719823963331,0.6230685,63031.0,63030.0,0.73302128]
[1719823964349,0.6230685,63031.0,63030.0,0.5706823]
[1719823964350,0.9403725,63031.0,63030.0,0.5706823]
[1719823964845,0.89338329,63031.0,63030.0,0.5706823]
[1719823965086,0.8836,63031.0,63030.0,0.5706823]
[1719823965309,0.94038433,63031.0,63030.0,0.5706823]
[1719823967615,0.21627633,63031.0,63030.0,0.5706823]
[1719823967884,0.18380357,63031.0,63030.0,0.73302128]
[1719823968387,0.1839489,63031.0,63030.0,0.73302128]
[1719823970348,0.0252969,63031.0,63030.0,0.73302128]
[1719823971391,0.02538461,63031.0,63030.0,0.73302128]
[1719823971760,0.00084,63031.0,63030.0,0.73302128]
[1719823971956,0.02538463,63031.0,63030.0,0.73302128]
[1719823974429,0.01559064,63031.0,63030.0,0.73302128]
[1719823974669,0.02537649,63031.0,63030.0,0.73302128]
[1719823975419,0.02537649,63031.0,63030.0,0.80742128]
[1719823976531,0.02537649,63031.0,63030.0,0.96607528]
[1719823977534,0.02536551,63031.0,63030.0,0.96607528]
[1719823980412,0.02536551,63031.0,63030.0,0.80742128]
[1719823980611,0.01561648,63031.0,63030.0,0.73302128]
[1719823980850,0.02540383,63031.0,63030.0,0.73302128]
[1719823981258,0.05811889,63031.0,63030.0,0.73302128]
[1719823981611,0.21677089,63031.0,63030.0,0.73302128]
[1719823981859,0.05811889,63031.0,63030.0,0.73302128]
[1719823982464,0.21677089,63031.0,63030.0,0.73302128]
[1719823983292,0.21680132,63031.0,63030.0,0.73302128]
[1719823983726,0.20200192,63031.0,63030.0,0.73302128]
[1719823983892,0.1840635,63031.0,63030.0,0.73302128]
[1719823984920,0.0254115,63031.0,63030.0,0.73302128]
[1719823986276,0.05813782,63031.0,63030.0,0.73302128]
[1719823986439,0.05813782,63031.0,63030.0,0.5706823]
[1719823986440,0.21678982,63031.0,63030.0,0.5706823]
[1719823986646,0.67909382,63031.0,63030.0,0.5706823]
[1719823986863,1.51345182,63031.0,63030.0,0.5706823]
[1719823987400,1.51345182,63031.0,63015.0,1.051362]
[1719823987401,0.695818,63016.0,63015.0,0.00792]
[1719823987528,1.42918262,63016.0,63015.0,0.00792]
[1719823987726,0.99205362,63016.0,63015.0,0.00792]
[1719823987895,0.05729782,63016.0,63015.0,0.00792]
[1719823988115,0.02457323,63016.0,63015.0,0.018152]
[1719823988833,0.03357323,63016.0,63015.0,0.019152]
[1719823989221,0.158677,63021.0,63016.0,0.1439]